bitfinex-derivatives/quotes_BTCF0:USTF0_20241128
["timestamp","ask_amount","ask_price","bid_price","bid_amount"]
[1732817557795,0.14016,95175.0,95174.0,0.052522]
[1732817558397,0.052516,95185.0,95174.0,0.009]
[1732817558597,0.06957574,95190.0,95180.0,0.052518]
[1732817558598,0.192676,95184.0,95180.0,0.052518]
[1732817558797,0.06957574,95190.0,95180.0,0.052518]
[1732817559097,0.052517,95183.0,95180.0,0.052518]
[1732817559901,0.052517,95183.0,95180.0,0.061518]
[1732817560092,0.14016,95182.0,95180.0,0.25018659]
[1732817560492,0.14016,95182.0,95180.0,0.068518]
[1732817560897,0.14016,95182.0,95180.0,0.016]
[1732817561104,0.14016,95182.0,95181.0,0.052518]
[1732817561695,0.14116,95182.0,95181.0,0.052518]
[1732817562199,0.193677,95182.0,95180.0,0.016]
[1732817562399,0.14116,95182.0,95180.0,0.017]
[1732817562598,0.052518,95181.0,95180.0,0.017]
[1732817563309,0.052518,95181.0,95180.0,0.18866859]
[1732817563899,0.053518,95181.0,95180.0,0.19766859]
[1732817564111,0.054518,95181.0,95180.0,0.20566859]
[1732817566601,0.054518,95181.0,95180.0,0.017]
[1732817566802,0.054518,95181.0,95180.0,0.20566859]
[1732817567001,0.087318,95181.0,95180.0,0.20566859]
[1732817567203,0.087318,95181.0,95180.0,0.017]
[1732817567604,0.0348,95181.0,95180.0,0.017]
[1732817567804,0.0348,95181.0,95180.0,0.20566859]
[1732817568206,0.002,95181.0,95180.0,0.20566859]
[1732817568510,0.002,95181.0,95180.0,0.017]
[1732817570311,0.054518,95181.0,95180.0,0.017]
[1732817575615,0.054518,95181.0,95180.0,0.26820528]
[1732817577808,0.002,95181.0,95180.0,0.017]
[1732817578007,0.002,95181.0,95180.0,0.26820528]
[1732817578814,0.054518,95181.0,95180.0,0.26820528]
[1732817583117,0.05461254,95181.0,95180.0,0.017]
[1732817583516,1.55461254,95181.0,95180.0,0.017]
[1732817583720,0.052523,95171.0,95170.0,0.00010454]
[1732817584122,0.192483,95171.0,95170.0,0.00010454]
[1732817586024,0.20175061,95171.0,95170.0,0.00410454]
[1732817586626,0.20175061,95171.0,95170.0,0.00710454]
[1732817589224,0.56255061,95171.0,95170.0,0.00710454]
[1732817589427,0.51002761,95171.0,95170.0,0.00710454]
[1732817589618,0.56255061,95171.0,95170.0,0.00710454]
[1732817603447,0.42259061,95171.0,95170.0,0.00710454]
[1732817603647,0.56235061,95171.0,95170.0,0.00710454]
[1732817606958,0.56235061,95171.0,95170.0,0.05962854]
[1732817606959,0.3608,95171.0,95170.0,0.05962854]
[1732817607255,0.50056,95171.0,95170.0,0.05962854]
[1732817612555,0.553083,95171.0,95170.0,0.05962854]
[1732817619562,0.553083,95171.0,95170.0,0.00710454]
[1732817621565,2.053083,95171.0,95170.0,0.00710454]
[1732817623257,0.553083,95171.0,95170.0,0.00710454]
[1732817627270,0.13956,95171.0,95170.0,0.00710454]
[1732817629167,0.192083,95171.0,95170.0,0.00710454]
[1732817631773,0.13956,95171.0,95170.0,0.00710454]
[1732817631981,0.13956,95173.0,95170.0,0.05962854]
[1732817632282,0.052523,95172.0,95171.0,0.18909149]
[1732817634776,0.192083,95172.0,95171.0,0.19309149]
[1732817635778,0.192083,95172.0,95171.0,0.007]
[1732817635981,0.13956,95172.0,95171.0,0.007]
[1732817636571,0.37036459,95176.0,95171.0,0.007]
[1732817636572,0.3608,95176.0,95171.0,0.007]
[1732817636772,0.50036,95176.0,95175.0,0.052521]
[1732817636977,0.13956,95176.0,95175.0,0.052521]
[1732817637977,0.052518,95180.0,95177.0,0.05252]
[1732817638174,0.13956,95179.0,95178.0,0.052519]
[1732817638380,9.454e-05,95181.0,95176.0,0.3152]
[1732817638573,9.454e-05,95181.0,95180.0,0.052518]
[1732817638774,9.454e-05,95181.0,95180.0,0.0621981]
[1732817638970,9.454e-05,95181.0,95180.0,0.367718]
[1732817640285,9.454e-05,95181.0,95180.0,0.370718]
[1732817640880,9.454e-05,95181.0,95180.0,0.367718]
[1732817641082,9.454e-05,95181.0,95180.0,0.370718]
[1732817641978,9.454e-05,95181.0,95180.0,0.374718]
[1732817642787,9.454e-05,95181.0,95180.0,0.371718]
[1732817642986,9.454e-05,95181.0,95180.0,0.374718]
[1732817644084,0.13956,95192.0,95191.0,0.052512]
[1732817644276,0.13956,95192.0,95191.0,0.413312]
[1732817644681,0.06207231,95197.0,95196.0,0.05251]
[1732817644892,0.192069,95197.0,95196.0,0.05251]
[1732817645190,0.19219028,95197.0,95196.0,0.05251]
[1732817646390,0.19619028,95197.0,95196.0,0.05251]
[1732817646788,0.19719028,95197.0,95196.0,0.05251]
[1732817647681,0.14468128,95197.0,95191.0,0.3608]
[1732817647993,0.052514,95188.0,95183.0,0.00946849]
[1732817648179,0.052514,95188.0,95187.0,0.052515]
[1732817649079,0.13956,95190.0,95187.0,0.052515]
[1732817649282,0.13956,95190.0,95188.0,0.052514]
[1732817649693,0.13956,95190.0,95189.0,0.052513]
[1732817650293,0.13956,95190.0,95176.0,0.03989102]
[1732817650294,0.052515,95187.0,95176.0,0.00949102]
[1732817650499,0.052515,95187.0,95175.0,0.052521]
[1732817650500,0.12977574,95186.0,95175.0,0.052521]
[1732817650690,0.052517,95184.0,95180.0,0.052518]
[1732817650894,0.052517,95184.0,95174.0,0.37002865]
[1732817650895,0.12977574,95186.0,95184.0,0.052516]
[1732817651198,0.0602,95186.0,95184.0,0.052516]
[1732817652111,0.0602,95186.0,95184.0,0.053516]
[1732817652505,0.06965864,95186.0,95184.0,0.053516]
[1732817652903,0.13956,95190.0,95184.0,0.053516]
[1732817652904,0.13956,95190.0,95185.0,0.052516]
[1732817653115,0.13956,95190.0,95184.0,0.003]
[1732817653411,0.052515,95188.0,95184.0,0.003]
[1732817653913,0.13956,95190.0,95184.0,0.003]
[1732817653914,0.413316,95185.0,95184.0,0.003]
[1732817654205,0.413316,95185.0,95170.0,0.00010454]
[1732817654206,0.052522,95174.0,95170.0,0.00010454]
[1732817654407,0.584782,95173.0,95170.0,0.00010454]
[1732817654604,0.13956,95172.0,95170.0,0.00010454]
[1732817655005,0.192083,95172.0,95170.0,0.00010454]
[1732817655415,0.13956,95172.0,95170.0,0.00010454]
[1732817655804,0.13956,95172.0,95170.0,0.00510454]
[1732817655805,0.14056,95172.0,95170.0,0.00510454]
[1732817656415,0.14056,95172.0,95171.0,0.052523]
[1732817657613,0.001,95172.0,95171.0,0.055523]
[1732817657811,0.1394,95172.0,95171.0,0.007]
[1732817658206,0.191923,95172.0,95171.0,0.007]
[1732817659210,0.1394,95172.0,95171.0,0.007]
[1732817660106,0.191923,95172.0,95171.0,0.007]
[1732817664314,0.1394,95172.0,95171.0,0.007]
[1732817664513,0.1394,95172.0,95171.0,0.059523]
[1732817666215,0.052519,95180.0,95171.0,0.059523]
[1732817666216,0.1394,95182.0,95171.0,0.007]
[1732817666515,0.191917,95182.0,95180.0,0.052518]
[1732817667617,0.04258906,95184.0,95176.0,0.3608]
[1732817667618,0.00948906,95184.0,95176.0,0.3608]
[1732817667812,0.0661,95192.0,95191.0,0.052512]
[1732817668010,0.0661,95192.0,95191.0,0.413312]
[1732817668318,0.0661,95192.0,95183.0,0.18860785]
[1732817668319,0.052514,95189.0,95183.0,0.18860785]
[1732817668512,0.052514,95189.0,95175.0,0.3608]
[1732817668513,0.052514,95189.0,95182.0,0.18860785]
[1732817668708,0.052514,95189.0,95182.0,0.24112485]
[1732817668912,0.052514,95189.0,95183.0,0.01053823]
[1732817669114,0.052514,95189.0,95184.0,0.01053823]
[1732817669317,0.052514,95189.0,95185.0,0.01053823]
[1732817669611,0.1394,95188.0,95186.0,0.01053823]
[1732817669814,0.1394,95188.0,95177.0,0.18860785]
[1732817670014,0.052514,95189.0,95178.0,0.02702146]
[1732817670215,0.1394,95188.0,95179.0,0.06291155]
[1732817670513,0.1394,95188.0,95179.0,0.052519]
[1732817670818,0.1394,95188.0,95180.0,0.01036345]
[1732817671026,0.1394,95188.0,95181.0,0.06288145]
[1732817671213,0.1394,95188.0,95182.0,0.01036345]
[1732817671411,0.1394,95188.0,95183.0,0.01036345]
[1732817671626,0.1394,95188.0,95184.0,0.01036345]
[1732817671817,0.1394,95188.0,95185.0,0.01036345]
[1732817672121,0.1394,95188.0,95182.0,0.052517]
[1732817672823,0.0661,95192.0,95182.0,0.052517]
[1732817672824,0.1394,95187.0,95182.0,0.052517]
[1732817673219,0.1394,95187.0,95185.0,0.052516]
[1732817673626,0.1394,95186.0,95183.0,0.3608]
[1732817674016,0.1394,95186.0,95184.0,0.052516]
[1732817674721,0.003,95187.0,95184.0,0.052516]
[1732817674927,0.003,95187.0,95186.0,0.052515]
[1732817675224,0.1394,95188.0,95186.0,0.052515]
[1732817676112,0.001,95187.0,95186.0,0.052515]
[1732817676925,0.001,95187.0,95186.0,0.06236459]
[1732817677624,0.1414,95188.0,95186.0,0.06236459]
[1732817677927,0.1414,95188.0,95186.0,0.052515]
[1732817678115,0.1394,95188.0,95186.0,0.052515]
[1732817678316,0.002,95187.0,95186.0,0.052515]
[1732817678716,0.1394,95188.0,95186.0,0.052515]
[1732817678920,0.1414,95188.0,95186.0,0.052515]
[1732817680120,0.002,95188.0,95186.0,0.052515]
[1732817680327,0.002,95188.0,95187.0,0.0097408]
[1732817680513,0.002,95187.0,95186.0,0.052515]
[1732817680719,0.00012128,95197.0,95186.0,0.37741579]
[1732817680916,0.00012128,95197.0,95196.0,0.41331]
[1732817681524,0.11020532,95210.0,95196.0,0.41331]
[1732817681525,0.0540767,95211.0,95196.0,0.72843]
[1732817681825,0.0540767,95211.0,95210.0,0.052502]
[1732817682629,0.00169027,95211.0,95210.0,0.052502]
[1732817682819,0.14105027,95211.0,95210.0,0.052502]
[1732817683925,0.14405027,95211.0,95210.0,0.052502]
[1732817684316,0.15205027,95211.0,95210.0,0.001]
[1732817684521,0.01269027,95211.0,95210.0,0.001]
[1732817684720,0.15205027,95211.0,95210.0,0.001]
[1732817684921,0.15047457,95211.0,95210.0,0.001]
[1732817685428,0.18367457,95211.0,95210.0,0.001]
[1732817686530,0.04431457,95211.0,95210.0,0.001]
[1732817686732,0.18367457,95211.0,95210.0,0.001]
[1732817687033,0.04431457,95211.0,95210.0,0.001]
[1732817687326,0.18487457,95211.0,95210.0,0.001]
[1732817687532,0.49995457,95211.0,95210.0,0.001]
[1732817688733,0.18487457,95211.0,95210.0,0.001]
[1732817695734,0.23737557,95211.0,95210.0,0.001]
[1732817698729,0.20417557,95211.0,95210.0,0.001]
[1732817699428,0.15167457,95211.0,95210.0,0.053502]
[1732817700131,0.01111457,95211.0,95210.0,0.053502]
[1732817700830,0.00611457,95211.0,95210.0,0.052502]
[1732817701431,0.00511457,95211.0,95210.0,0.052502]
[1732817704641,0.00511457,95211.0,95210.0,0.367582]
[1732817705935,0.00511457,95211.0,95210.0,0.61897487]
[1732817706340,0.00511457,95211.0,95210.0,0.37745746]
[1732817706736,0.10596294,95240.0,95210.0,0.75564]
[1732817706945,0.14056,95234.0,95230.0,0.052491]
[1732817707241,0.05406584,95231.0,95230.0,0.052491]
[1732817707438,0.052493,95227.0,95226.0,0.3608]
[1732817707648,0.052491,95230.0,95226.0,0.3608]
[1732817707832,7.966e-05,95227.0,95226.0,0.413293]
[1732817708738,0.00907966,95227.0,95226.0,0.414293]
[1732817709338,0.06157266,95227.0,95226.0,0.414293]
[1732817709533,0.06457266,95227.0,95226.0,0.414293]
[1732817709735,0.06457266,95227.0,95226.0,0.001]
[1732817710542,1.56457266,95227.0,95226.0,0.001]
[1732817710942,1.57384773,95227.0,95226.0,0.001]
[1732817711242,1.57384773,95227.0,95210.0,0.01737694]
[1732817711449,0.3608,95222.0,95210.0,0.01737694]
[1732817711753,0.052501,95212.0,95210.0,0.01737694]
[1732817712043,0.052501,95211.0,95210.0,0.01737694]
[1732817712440,0.084601,95211.0,95210.0,0.01737694]
[1732817713353,0.09376065,95211.0,95210.0,0.01837694]
[1732817716543,0.09376065,95211.0,95210.0,0.00257536]
[1732817716755,0.084601,95211.0,95210.0,0.00257536]
[1732817717051,0.3608,95212.0,95210.0,0.00257536]
[1732817717251,0.3608,95212.0,95210.0,0.05507736]
[1732817717644,0.14064,95211.0,95210.0,0.05507736]
[1732817718045,0.14764,95211.0,95210.0,0.05607736]
[1732817718647,0.14764,95211.0,95210.0,0.05507736]
[1732817718648,0.14064,95211.0,95210.0,0.05507736]
[1732817718951,0.14364,95211.0,95210.0,0.05407736]
[1732817719251,0.14664,95211.0,95210.0,0.05407736]
[1732817719750,0.14464,95211.0,95210.0,0.05407736]
[1732817719952,0.197141,95211.0,95210.0,0.00157536]
[1732817720750,0.194141,95211.0,95210.0,0.00157536]
[1732817720951,0.198141,95211.0,95210.0,0.00157536]
[1732817726649,0.05251,95195.0,95194.0,0.18860427]
[1732817726855,0.19315,95195.0,95194.0,0.18860427]
[1732817728053,0.19315,95195.0,95194.0,0.19260427]
[1732817728951,0.19315,95195.0,95194.0,0.19560427]
[1732817729850,0.19315,95195.0,95194.0,0.007]
[1732817730661,0.19315,95195.0,95194.0,0.006]
[1732817732148,0.14064,95195.0,95194.0,0.006]
[1732817732647,0.14064,95195.0,95194.0,0.058511]
[1732817733053,0.3608,95200.0,95194.0,0.006]
[1732817733360,0.3608,95200.0,95198.0,0.052508]
[1732817733361,0.14064,95199.0,95198.0,0.052508]
[1732817734657,0.052509,95198.0,95194.0,0.05851]
[1732817735063,0.052509,95198.0,95194.0,0.05551]
[1732817735457,0.052509,95198.0,95195.0,0.05251]
[1732817735760,0.14064,95199.0,95197.0,0.052509]
[1732817736265,0.193148,95199.0,95197.0,0.052509]
[1732817736559,0.052508,95199.0,95197.0,0.052509]
[1732817736753,0.14064,95198.0,95197.0,0.052509]
[1732817737354,0.193148,95198.0,95197.0,0.052509]
[1732817737564,0.193148,95198.0,95197.0,0.054509]
[1732817738453,0.193148,95198.0,95197.0,0.056509]
[1732817738670,0.193148,95198.0,95197.0,0.004]
[1732817739255,0.193148,95198.0,95197.0,0.002]
[1732817739560,0.193148,95198.0,95197.0,0.004]
[1732817745759,0.553948,95198.0,95197.0,0.004]
[1732817755077,0.413308,95198.0,95197.0,0.004]
[1732817755264,0.552628,95198.0,95197.0,0.004]
[1732817755467,0.191828,95198.0,95197.0,0.19301828]
[1732817755972,0.191828,95198.0,95197.0,0.004]
[1732817756173,0.191828,95198.0,95197.0,0.19301828]
[1732817756373,0.191828,95198.0,95197.0,0.004]
[1732817756570,0.052508,95198.0,95197.0,0.004]
[1732817756871,0.191828,95198.0,95197.0,0.004]
[1732817758076,0.13932,95198.0,95197.0,0.004]
[1732817761380,0.191828,95198.0,95197.0,0.004]
[1732817763785,0.052508,95198.0,95197.0,0.004]
[1732817763980,0.052508,95198.0,95197.0,0.19301828]
[1732817763981,0.191828,95198.0,95197.0,0.19301828]
[1732817764375,0.191828,95198.0,95197.0,0.004]
[1732817764687,0.191828,95198.0,95197.0,0.19304007]
[1732817766378,0.191828,95198.0,95197.0,0.004]
[1732817766575,0.191828,95198.0,95197.0,0.19304315]
[1732817766988,0.191828,95198.0,95197.0,0.004]
[1732817767681,0.191828,95198.0,95197.0,0.19304315]
[1732817767881,0.191828,95198.0,95197.0,0.004]
[1732817768897,0.13932,95198.0,95197.0,0.004]
[1732817769589,0.413304,95207.0,95197.0,0.19304315]
[1732817769791,0.413304,95207.0,95203.0,0.052506]
[1732817769792,0.13932,95206.0,95203.0,0.052506]
[1732817770088,0.413304,95207.0,95203.0,0.052506]
[1732817770089,0.13932,95205.0,95203.0,0.052506]
[1732817771196,0.13932,95205.0,95201.0,0.18904315]
[1732817771197,0.052506,95202.0,95201.0,0.18904315]
[1732817771701,0.052507,95200.0,95199.0,0.18904315]
[1732817771991,0.052508,95199.0,95197.0,0.004]
[1732817772291,0.052508,95199.0,95197.0,0.002]
[1732817772499,0.13932,95198.0,95197.0,0.002]
[1732817772797,0.13932,95198.0,95197.0,0.052509]
[1732817773894,0.13932,95198.0,95197.0,0.054509]
[1732817774296,0.13932,95198.0,95197.0,0.24555215]
[1732817774789,0.13932,95198.0,95197.0,0.056509]
[1732817775094,0.13932,95198.0,95197.0,0.054509]
[1732817775287,0.13932,95198.0,95197.0,0.056509]
[1732817778797,0.191829,95198.0,95197.0,0.004]
[1732817780289,0.13932,95198.0,95197.0,0.004]
[1732817780994,0.13932,95198.0,95197.0,0.056509]
[1732817784496,0.191829,95198.0,95197.0,0.056509]
[1732817784795,0.191829,95198.0,95197.0,0.004]
[1732817785902,0.191749,95198.0,95197.0,0.004]
[1732817786602,0.45436,95198.0,95177.0,0.00157589]
[1732817786799,0.05252,95178.0,95177.0,0.00157589]
[1732817787104,0.19176,95178.0,95177.0,0.00157589]
[1732817787296,0.19184242,95178.0,95177.0,0.00157589]
[1732817787501,0.19184242,95178.0,95174.0,0.18910823]
[1732817787502,0.052523,95171.0,95170.0,0.00010454]
[1732817787796,0.3608,95172.0,95170.0,0.00010454]
[1732817788604,0.052523,95171.0,95170.0,0.00010454]
[1732817788993,0.3608,95172.0,95170.0,0.00010454]
[1732817789190,8.242e-05,95178.0,95170.0,0.00010454]
[1732817789191,0.13928,95171.0,95170.0,0.05262854]
[1732817789393,0.13928,95177.0,95170.0,0.00010454]
[1732817789699,0.052522,95175.0,95172.0,0.18875114]
[1732817789904,0.052522,95174.0,95172.0,0.18875114]
[1732817790099,0.052522,95174.0,95171.0,0.18875114]
[1732817790296,0.052523,95173.0,95171.0,0.18875114]
[1732817790603,0.0321,95176.0,95170.0,0.00310454]
[1732817790604,0.052523,95171.0,95170.0,0.00310454]
[1732817790803,0.052523,95171.0,95170.0,0.00810454]
[1732817791905,0.052521,95175.0,95171.0,0.003]
[1732817792703,0.052521,95175.0,95171.0,0.008]
[1732817793095,0.0321,95176.0,95172.0,0.052523]
[1732817794694,0.0321,95176.0,95172.0,0.055523]
[1732817795003,0.052522,95174.0,95172.0,0.055523]
[1732817795404,0.052522,95174.0,95172.0,0.059523]
[1732817795800,0.052522,95174.0,95172.0,0.007]
[1732817795999,0.052522,95174.0,95173.0,0.052522]
[1732817797504,0.084621,95176.0,95175.0,0.052521]
[1732817798007,0.084621,95176.0,95173.0,0.003]
[1732817798310,0.052522,95174.0,95173.0,0.055522]
[1732817798607,0.13928,95175.0,95174.0,0.052522]
[1732817799811,0.052522,95174.0,95171.0,0.18875114]
[1732817800004,0.13928,95175.0,95171.0,0.24127414]
[1732817800304,0.052523,95173.0,95171.0,0.24127414]
[1732817800505,0.13928,95175.0,95172.0,0.18875114]
[1732817800902,0.13928,95175.0,95174.0,0.052522]
[1732817802012,8.242e-05,95178.0,95174.0,0.003]
[1732817802205,8.242e-05,95178.0,95177.0,0.41332]
[1732817802613,8.242e-05,95178.0,95177.0,0.72852]
[1732817803806,8.242e-05,95178.0,95177.0,0.73052]
[1732817804321,8.242e-05,95178.0,95177.0,0.74006514]
[1732817804619,8.242e-05,95178.0,95177.0,0.74206514]
[1732817807116,8.242e-05,95178.0,95177.0,0.42686514]
[1732817808220,8.242e-05,95178.0,95177.0,0.74206514]
[1732817808519,0.052511,95194.0,95192.0,0.052512]
[1732817808814,0.052511,95194.0,95183.0,0.052517]
[1732817808815,0.052511,95194.0,95187.0,0.3608]
[1732817809008,0.052511,95194.0,95193.0,0.052511]
[1732817809322,0.05263752,95194.0,95193.0,0.052511]
[1732817810614,0.05963752,95194.0,95193.0,0.053511]
[1732817810818,0.06263752,95194.0,95193.0,0.053511]
[1732817812417,0.05863752,95194.0,95193.0,0.06173294]
[1732817812816,0.05563752,95194.0,95193.0,0.06173294]
[1732817813017,0.00512652,95194.0,95193.0,0.06173294]
[1732817813818,0.00212652,95194.0,95193.0,0.06173294]
[1732817814015,0.05463752,95194.0,95193.0,0.052511]
[1732817814219,0.05463752,95194.0,95189.0,0.18866587]
[1732817814220,0.052513,95190.0,95189.0,0.052512]
[1732817814617,0.00212652,95194.0,95188.0,0.18866587]
[1732817814828,0.05463752,95194.0,95193.0,0.052511]
[1732817816126,0.05263752,95194.0,95193.0,0.052511]
[1732817816316,0.05363752,95194.0,95193.0,0.052511]
[1732817816820,0.00212652,95194.0,95193.0,0.052511]
[1732817820623,0.05463752,95194.0,95193.0,0.052511]
[1732817820822,0.00212652,95194.0,95193.0,0.052511]
[1732817826922,0.05463752,95194.0,95193.0,0.052511]
[1732817829431,0.00212652,95194.0,95193.0,0.052511]
[1732817830117,0.05463752,95194.0,95193.0,0.052511]
[1732817831427,0.00212652,95194.0,95193.0,0.052511]
[1732817832720,0.14132652,95194.0,95193.0,0.052511]
[1732817832926,0.19383752,95194.0,95193.0,0.052511]
[1732817835231,0.14132652,95194.0,95193.0,0.052511]
[1732817838433,0.00212652,95194.0,95193.0,0.052511]
[1732817838636,0.00212652,95194.0,95193.0,0.0620378]
[1732817839029,0.00212652,95194.0,95193.0,0.06203782]
[1732817839235,0.00212652,95194.0,95193.0,0.052511]
[1732817839436,0.00212652,95194.0,95193.0,0.06203779]
[1732817839737,0.00212652,95194.0,95193.0,0.06303779]
[1732817839928,0.00012652,95194.0,95193.0,0.06303779]
[1732817840129,0.00112652,95194.0,95193.0,0.06303779]
[1732817840530,0.00012652,95194.0,95193.0,0.06303779]
[1732817840730,0.00112652,95194.0,95193.0,0.06320452]
[1732817841629,0.00112652,95194.0,95193.0,0.053511]
[1732817842029,0.00112652,95194.0,95193.0,0.052511]
[1732817842231,0.00112652,95194.0,95193.0,0.06221062]
[1732817842232,0.05363752,95194.0,95193.0,0.06221062]
[1732817842433,0.05363752,95194.0,95193.0,0.052511]
[1732817842643,0.00112652,95194.0,95193.0,0.052511]
[1732817843635,0.14020652,95194.0,95193.0,0.052511]
[1732817849740,0.052512,95192.0,95191.0,0.31424108]
[1732817850047,0.052513,95189.0,95188.0,0.36675508]
[1732817850239,0.19271752,95194.0,95191.0,0.052512]
[1732817850440,0.19271752,95194.0,95193.0,0.25220088]
[1732817851154,0.19171752,95194.0,95193.0,0.25220088]
[1732817853046,0.19271752,95194.0,95193.0,0.25220088]
[1732817853546,0.19271752,95194.0,95184.0,0.36998185]
[1732817853547,0.052512,95192.0,95189.0,0.052513]
[1732817854742,0.052512,95192.0,95189.0,0.054513]
[1732817856746,0.052512,95192.0,95189.0,0.055513]
[1732817858755,0.052512,95192.0,95190.0,0.052513]
[1732817861054,0.052512,95192.0,95190.0,0.053513]
[1732817861955,0.14861611,95194.0,95190.0,0.001]
[1732817862148,0.052512,95191.0,95190.0,0.001]
[1732817863658,0.191592,95191.0,95190.0,0.001]
[1732817871466,0.00012652,95194.0,95190.0,0.001]
[1732817871668,0.00012652,95194.0,95193.0,0.052511]
[1732817871974,0.00012652,95194.0,95193.0,0.24161878]
[1732817873165,0.00212652,95194.0,95193.0,0.24161878]
[1732817873365,0.00212652,95194.0,95193.0,0.052511]
[1732817873969,0.00212652,95194.0,95193.0,0.24161878]
[1732817874276,0.00212652,95194.0,95193.0,0.24159613]
[1732817874465,0.00212652,95194.0,95193.0,0.052511]
[1732817874666,0.00212652,95194.0,95193.0,0.24158543]
[1732817875473,0.00212652,95194.0,95193.0,0.052511]
[1732817876474,0.05463752,95194.0,95193.0,0.052511]
[1732817877374,0.00212652,95194.0,95193.0,0.052511]
[1732817879382,0.00112652,95194.0,95193.0,0.052511]
[1732817880471,0.05363752,95194.0,95193.0,0.052511]
[1732817883070,0.00112652,95194.0,95193.0,0.052511]
[1732817884971,0.05363752,95194.0,95193.0,0.052511]
[1732817886276,0.00112652,95194.0,95193.0,0.052511]
[1732817886582,0.05363752,95194.0,95193.0,0.052511]
[1732817886881,0.00112652,95194.0,95191.0,0.36675308]
[1732817887082,0.052512,95192.0,95191.0,0.36675308]
[1732817887481,0.0303,95193.0,95192.0,0.052512]
[1732817888780,0.082811,95193.0,95192.0,0.052512]
[1732817890281,0.083811,95193.0,95192.0,0.053512]
[1732817891983,0.083811,95193.0,95192.0,0.001]
[1732817892884,0.398971,95193.0,95179.0,0.18905209]
[1732817893080,0.398971,95193.0,95174.0,0.3608]
[1732817893081,0.05252,95177.0,95174.0,0.3608]
[1732817893281,0.0327,95176.0,95174.0,0.413322]
[1732817893483,0.052521,95175.0,95174.0,0.3608]
[1732817893781,0.085521,95175.0,95174.0,0.3608]
[1732817894178,0.052522,95173.0,95172.0,0.00157597]
[1732817894474,0.191482,95173.0,95172.0,0.00157597]
[1732817895779,0.052523,95171.0,95164.0,0.052527]
[1732817896675,0.052523,95171.0,95161.0,0.00927724]
[1732817896878,0.14096,95173.0,95172.0,0.052523]
[1732817897279,0.13896,95173.0,95172.0,0.052523]
[1732817898185,0.192482,95173.0,95172.0,0.006]
[1732817899085,0.193482,95173.0,95172.0,0.015]
[1732817909289,0.192482,95173.0,95172.0,0.006]
[1732817909489,0.193482,95173.0,95172.0,0.015]
[1732817912894,0.054522,95173.0,95172.0,0.015]
[1732817913105,0.193322,95173.0,95172.0,0.015]
[1732817915592,0.054522,95173.0,95172.0,0.015]
[1732817915799,0.193362,95173.0,95172.0,0.015]
[1732817919598,0.554162,95173.0,95172.0,0.015]
[1732817925600,0.3628,95173.0,95172.0,0.067523]
[1732817925805,0.50164,95173.0,95172.0,0.067523]
[1732817926000,0.554162,95173.0,95172.0,0.015]
[1732817927408,0.415322,95173.0,95172.0,0.015]
[1732817927610,0.554162,95173.0,95172.0,0.015]
[1732817930717,0.50164,95173.0,95172.0,0.015]
[1732817932613,0.50164,95173.0,95172.0,0.067523]
[1732817934009,0.50164,95173.0,95172.0,0.25664171]
[1732817934509,0.3628,95173.0,95172.0,0.25664171]
[1732817934711,0.50144,95173.0,95172.0,0.25664171]
[1732817935415,0.553962,95173.0,95172.0,0.25664171]
[1732817936607,0.553962,95173.0,95172.0,0.067523]
[1732817937121,0.553962,95173.0,95172.0,0.015]
[1732817937520,0.50144,95173.0,95172.0,0.067523]
[1732817938619,0.14064,95173.0,95172.0,0.067523]
[1732817939216,0.002,95173.0,95172.0,0.067523]
[1732817939417,0.002,95173.0,95172.0,0.382723]
[1732817939620,0.002,95173.0,95172.0,0.448247]
[1732817939813,0.002,95173.0,95172.0,0.133047]
[1732817940313,0.002,95173.0,95172.0,0.14243487]
[1732817942221,0.002,95173.0,95172.0,0.10973487]
[1732817945328,0.002,95173.0,95172.0,0.10931087]
[1732817948434,0.054522,95173.0,95172.0,0.015]
[1732817950616,0.193162,95173.0,95172.0,0.015]
[1732817951220,0.20233465,95173.0,95172.0,0.015]
[1732817951927,0.20233465,95173.0,95172.0,0.20388419]
[1732817952125,0.20233465,95173.0,95172.0,0.015]
[1732817953622,0.20233465,95173.0,95172.0,0.2039081]
[1732817955229,0.20233465,95173.0,95172.0,0.015]
[1732817958424,0.56313465,95173.0,95172.0,0.015]
[1732817968528,2.06313465,95173.0,95172.0,0.015]
[1732817969334,0.56313465,95173.0,95172.0,0.015]
[1732817980440,0.20233465,95173.0,95172.0,0.015]
[1732817981845,0.56313465,95173.0,95172.0,0.015]
[1732817982838,0.56297465,95173.0,95172.0,0.015]
[1732817985046,0.87817465,95173.0,95172.0,0.015]
[1732817985351,0.56297465,95173.0,95172.0,0.015]
[1732817985755,2.06297465,95173.0,95172.0,0.015]
[1732817986148,2.06297465,95173.0,95172.0,0.2039081]
[1732817986453,0.56297465,95173.0,95172.0,0.2039081]
[1732817986849,0.56297465,95173.0,95172.0,0.015]
[1732817998450,0.56197465,95173.0,95172.0,0.006]
[1732817998645,0.56197465,95173.0,95172.0,0.013]
[1732817998646,0.56297465,95173.0,95172.0,0.013]
[1732818002054,2.06297465,95173.0,95172.0,0.013]
[1732818006557,0.01117265,95173.0,95172.0,0.013]
[1732818006753,0.14032,95173.0,95172.0,0.065523]
[1732818006950,0.002,95173.0,95172.0,0.065523]
[1732818007153,0.14032,95173.0,95172.0,0.545875]
[1732818007355,0.14032,95173.0,95172.0,0.065523]
[1732818007563,0.14032,95173.0,95172.0,0.38058703]
[1732818008158,0.14028,95173.0,95172.0,0.38058703]
[1732818008357,0.14028,95173.0,95172.0,0.065523]
[1732818009957,0.192802,95173.0,95172.0,0.013]
[1732818011157,0.192802,95173.0,95172.0,0.065523]
[1732818012552,0.054522,95173.0,95172.0,0.065523]
[1732818012860,0.192802,95173.0,95172.0,0.065523]
[1732818013065,0.192802,95173.0,95172.0,0.013]